[Event "*** Titled Tuesday Blitz"]
[Site "Chess.com"]
[Date "2020.05.05"]
[Round "3"]
[White "Charlottemillard17"]
[Black "CaptainTheTT"]
[Result "0-1"]
[WhiteElo "1428"]
[BlackElo "2224"]
[TimeControl "180+1"]
[EndTime "10:29:52 PDT"]
[Termination "CaptainTheTT won on time"]

1. e4 {[%clk 0:03:00.9]} 1... c5 {[%clk 0:02:59.7]} 2. Nf3 {[%clk 0:02:59.4]}
2... Nc6 {[%clk 0:03:00.2]} 3. Bb5 {[%clk 0:02:52.6]} 3... g6 {[%clk 0:02:57.7]}
4. Bxc6 {[%clk 0:02:49.8]} 4... dxc6 {[%clk 0:02:58.6]} 5. d4 {[%clk 0:02:49]}
5... cxd4 {[%clk 0:02:56.1]} 6. Nxd4 {[%clk 0:02:48.8]} 6... Bg7 {[%clk
0:02:53.1]} 7. Nb3 {[%clk 0:02:23.2]} 7... Qxd1+ {[%clk 0:02:47.8]} 8. Kxd1
{[%clk 0:02:22.1]} 8... f5 {[%clk 0:02:48.3]} 9. N1d2 {[%clk 0:02:11.5]} 9...
Nf6 {[%clk 0:02:44.4]} 10. Re1 {[%clk 0:02:05.6]} 10... fxe4 {[%clk 0:02:36.7]}
11. Nxe4 {[%clk 0:02:04.4]} 11... Nxe4 {[%clk 0:02:37.3]} 12. Rxe4 {[%clk
0:02:04.1]} 12... Bf5 {[%clk 0:02:35.3]} 13. Re2 {[%clk 0:01:57.6]} 13... Rd8+
{[%clk 0:02:27.1]} 14. Ke1 {[%clk 0:01:56.7]} 14... b6 {[%clk 0:02:26.9]} 15.
Bg5 {[%clk 0:01:54.8]} 15... Rd7 {[%clk 0:02:25.9]} 16. Kf1 {[%clk 0:01:47.1]}
16... h6 {[%clk 0:02:21.7]} 17. Bc1 {[%clk 0:01:40.4]} 17... Rd1+ {[%clk
0:02:16]} 18. Re1 {[%clk 0:01:38.5]} 18... Rxe1+ {[%clk 0:02:16.4]} 19. Kxe1
{[%clk 0:01:38.4]} 19... Bxc2 {[%clk 0:02:17]} 20. Kd2 {[%clk 0:01:27.9]} 20...
Bf5 {[%clk 0:02:12.7]} 21. f3 {[%clk 0:01:23.4]} 21... Kf7 {[%clk 0:02:09.7]}
22. g4 {[%clk 0:01:21.5]} 22... Rd8+ {[%clk 0:02:03.2]} 23. Ke2 {[%clk
0:01:17.1]} 23... Bd3+ {[%clk 0:01:59.3]} 24. Ke3 {[%clk 0:01:12.4]} 24... c5
{[%clk 0:01:56.4]} 25. h4 {[%clk 0:01:04.7]} 25... c4 {[%clk 0:01:50.3]} 26. Nd2
{[%clk 0:01:03.8]} 26... c3 {[%clk 0:01:49]} 27. Nb3 {[%clk 0:00:22]} 27... cxb2
{[%clk 0:01:46.1]} 28. Bxb2 {[%clk 0:00:20.6]} 28... Bxb2 {[%clk 0:01:45.6]} 29.
Rg1 {[%clk 0:00:18.5]} 29... Bc4 {[%clk 0:01:41.4]} 30. Rh1 {[%clk 0:00:16.4]}
30... Rd3+ {[%clk 0:01:33.6]} 31. Kf4 {[%clk 0:00:16.3]} 31... e5+ {[%clk
0:01:31.8]} 32. Kg3 {[%clk 0:00:16.1]} 32... Bd5 {[%clk 0:01:29.7]} 33. Rf1
{[%clk 0:00:14.9]} 33... e4 {[%clk 0:01:22.1]} 34. Kg2 {[%clk 0:00:06.2]} 34...
exf3+ {[%clk 0:01:21]} 35. Kg3 {[%clk 0:00:05.2]} 35... Be5+ {[%clk 0:01:20.1]}
36. Kf2 {[%clk 0:00:04.7]} 36... Re3 {[%clk 0:01:12.4]} 37. Kxe3 {[%clk
0:00:03.8]} 37... Bg3 {[%clk 0:00:34.2]} 38. Nd2 {[%clk 0:00:03.2]} 38... f2
{[%clk 0:00:31.2]} 39. Ne4 {[%clk 0:00:03.4]} 39... Bxe4 {[%clk 0:00:29.3]} 40.
Kxe4 {[%clk 0:00:03.1]} 40... Bxh4 {[%clk 0:00:29.8]} 41. Kf3 {[%clk 0:00:03.2]}
41... Ke6 {[%clk 0:00:28]} 42. Ke4 {[%clk 0:00:02.2]} 42... b5 {[%clk
0:00:25.6]} 0-1

[Event "*** Titled Tuesday Blitz"]
[Site "Chess.com"]
[Date "2020.05.05"]
[Round "3"]
[White "putra48"]
[Black "Sam_ChessMood"]
[Result "0-1"]
[WhiteElo "2623"]
[BlackElo "2869"]
[TimeControl "180+1"]
[EndTime "10:29:53 PDT"]
[Termination "Sam_ChessMood won on time"]

1. e4 {[%clk 0:02:50]} 1... c5 {[%clk 0:02:59.4]} 2. c3 {[%clk 0:02:49.4]} 2...
d5 {[%clk 0:02:58]} 3. exd5 {[%clk 0:02:49.5]} 3... Qxd5 {[%clk 0:02:58.9]} 4.
d4 {[%clk 0:02:50.4]} 4... g6 {[%clk 0:02:59]} 5. Na3 {[%clk 0:02:42.2]} 5...
Bg7 {[%clk 0:02:55.6]} 6. Nf3 {[%clk 0:02:38.8]} 6... cxd4 {[%clk 0:02:55.3]} 7.
Nb5 {[%clk 0:02:38.6]} 7... Na6 {[%clk 0:02:52.8]} 8. Be3 {[%clk 0:02:31.9]}
8... Nf6 {[%clk 0:02:35.4]} 9. Qxd4 {[%clk 0:02:26.5]} 9... O-O {[%clk
0:02:26.6]} 10. Nxa7 {[%clk 0:02:19.6]} 10... Qxd4 {[%clk 0:01:46.2]} 11. Bxd4
{[%clk 0:02:18.1]} 11... e5 {[%clk 0:01:45.6]} 12. Nxe5 {[%clk 0:01:54.6]} 12...
Bf5 {[%clk 0:01:11.9]} 13. Nb5 {[%clk 0:01:46.5]} 13... Rfe8 {[%clk 0:01:03]}
14. Nd6 {[%clk 0:01:39.3]} 14... Nd7 {[%clk 0:00:53.8]} 15. Nxe8 {[%clk
0:01:35.5]} 15... Rxe8 {[%clk 0:00:52.9]} 16. f4 {[%clk 0:01:28.2]} 16... f6
{[%clk 0:00:52.6]} 17. Bc4+ {[%clk 0:01:18.4]} 17... Kf8 {[%clk 0:00:32.2]} 18.
O-O {[%clk 0:01:16.7]} 18... fxe5 {[%clk 0:00:32.4]} 19. fxe5 {[%clk 0:01:16.7]}
19... Ke7 {[%clk 0:00:32.8]} 20. Bd5 {[%clk 0:00:26.2]} 20... Nc7 {[%clk
0:00:21]} 21. Bxb7 {[%clk 0:00:25.4]} 21... Rb8 {[%clk 0:00:21]} 22. Bf3 {[%clk
0:00:19.5]} 22... Rxb2 {[%clk 0:00:21]} 23. a4 {[%clk 0:00:19.5]} 23... Na6
{[%clk 0:00:08.3]} 24. a5 {[%clk 0:00:17.8]} 24... Ndc5 {[%clk 0:00:08.6]} 25.
Rf2 {[%clk 0:00:10.4]} 25... Rb5 {[%clk 0:00:04.1]} 26. Be2 {[%clk 0:00:08.2]}
26... Rb8 {[%clk 0:00:04.2]} 27. g4 {[%clk 0:00:06.8]} 27... Be6 {[%clk
0:00:04.6]} 28. h3 {[%clk 0:00:05.5]} 28... Bh6 {[%clk 0:00:03.7]} 29. h4 {[%clk
0:00:02.5]} 29... Bg7 {[%clk 0:00:03.6]} 30. g5 {[%clk 0:00:02]} 30... Nb3
{[%clk 0:00:02.6]} 0-1

[Event "*** Titled Tuesday Blitz"]
[Site "Chess.com"]
[Date "2020.05.05"]
[Round "3"]
[White "WoolworthsManly"]
[Black "KarstenHansch"]
[Result "1-0"]
[WhiteElo "2674"]
[BlackElo "2413"]
[TimeControl "180+1"]
[EndTime "10:29:53 PDT"]
[Termination "WoolworthsManly won by resignation"]

1. e4 {[%clk 0:03:00.9]} 1... c6 {[%clk 0:02:59.4]} 2. d4 {[%clk 0:03:00.5]}
2... d5 {[%clk 0:03:00.3]} 3. e5 {[%clk 0:03:01]} 3... Bf5 {[%clk 0:02:59.9]} 4.
Nf3 {[%clk 0:03:01.6]} 4... e6 {[%clk 0:03:00.2]} 5. Be2 {[%clk 0:03:01.9]} 5...
c5 {[%clk 0:03:00.5]} 6. Be3 {[%clk 0:03:01.3]} 6... Nc6 {[%clk 0:02:58.8]} 7.
O-O {[%clk 0:03:01.2]} 7... cxd4 {[%clk 0:02:58]} 8. Nxd4 {[%clk 0:03:01]} 8...
Nge7 {[%clk 0:02:58.1]} 9. Nd2 {[%clk 0:03:01]} 9... Nxd4 {[%clk 0:02:52.6]} 10.
Bxd4 {[%clk 0:03:00.9]} 10... Nc6 {[%clk 0:02:52.7]} 11. Nf3 {[%clk 0:02:35.7]}
11... Be4 {[%clk 0:02:49.7]} 12. c3 {[%clk 0:02:36]} 12... Bxf3 {[%clk
0:02:46.7]} 13. Bxf3 {[%clk 0:02:35.4]} 13... Be7 {[%clk 0:02:46.3]} 14. Qb3
{[%clk 0:02:20.1]} 14... Qc7 {[%clk 0:02:34.2]} 15. Rfe1 {[%clk 0:02:18.6]}
15... O-O {[%clk 0:02:32.6]} 16. Rad1 {[%clk 0:02:17.2]} 16... Rfc8 {[%clk
0:02:29.7]} 17. g3 {[%clk 0:02:02.4]} 17... Nxd4 {[%clk 0:02:27.3]} 18. Rxd4
{[%clk 0:02:02.3]} 18... Qb6 {[%clk 0:02:23.4]} 19. Qxb6 {[%clk 0:01:58.4]}
19... axb6 {[%clk 0:02:22]} 20. a3 {[%clk 0:01:59]} 20... Rc5 {[%clk 0:02:09.5]}
21. Be2 {[%clk 0:01:56.8]} 21... Rc7 {[%clk 0:02:04]} 22. Kg2 {[%clk 0:01:55.2]}
22... g6 {[%clk 0:02:03.5]} 23. Rd2 {[%clk 0:01:52.4]} 23... h5 {[%clk
0:02:02.3]} 24. h3 {[%clk 0:01:51.5]} 24... Ra4 {[%clk 0:02:00.3]} 25. Bb5
{[%clk 0:01:50.1]} 25... Ra5 {[%clk 0:01:54.6]} 26. a4 {[%clk 0:01:50.5]} 26...
Ra8 {[%clk 0:01:54.2]} 27. f4 {[%clk 0:01:49.7]} 27... Rd8 {[%clk 0:01:49.4]}
28. Kf3 {[%clk 0:01:46.6]} 28... Kf8 {[%clk 0:01:35.5]} 29. g4 {[%clk
0:01:46.7]} 29... hxg4+ {[%clk 0:01:32.6]} 30. hxg4 {[%clk 0:01:47.6]} 30... Kg7
{[%clk 0:01:32.5]} 31. Rh1 {[%clk 0:01:47.6]} 31... Rh8 {[%clk 0:01:24.9]} 32.
Rxh8 {[%clk 0:01:47.2]} 32... Kxh8 {[%clk 0:01:24.9]} 33. f5 {[%clk 0:01:47.8]}
33... Bg5 {[%clk 0:01:03.9]} 34. Rh2+ {[%clk 0:01:31.8]} 34... Kg8 {[%clk
0:01:01.5]} 35. f6 {[%clk 0:01:32.2]} 35... Rc8 {[%clk 0:00:55.7]} 36. Rh1
{[%clk 0:01:26.7]} 36... Rc7 {[%clk 0:00:52.5]} 37. Rd1 {[%clk 0:01:26.7]} 37...
Bh6 {[%clk 0:00:20.4]} 38. Rd4 {[%clk 0:01:24.5]} 38... Bf8 {[%clk 0:00:20.2]}
39. g5 {[%clk 0:01:24.2]} 39... Bc5 {[%clk 0:00:19.7]} 40. Rh4 {[%clk
0:01:23.6]} 40... Rc8 {[%clk 0:00:19.9]} 41. Ke2 {[%clk 0:01:22.3]} 41... Rd8
{[%clk 0:00:19.9]} 42. Kd3 {[%clk 0:01:22.4]} 42... Rc8 {[%clk 0:00:18.4]} 43.
b4 {[%clk 0:01:20.9]} 43... Bf8 {[%clk 0:00:17.6]} 44. Rh1 {[%clk 0:01:20.4]}
44... Rd8 {[%clk 0:00:17.6]} 45. Ra1 {[%clk 0:01:15]} 45... Ra8 {[%clk
0:00:17.5]} 46. Bd7 {[%clk 0:01:13.9]} 46... Rd8 {[%clk 0:00:17.1]} 47. Bb5
{[%clk 0:01:14]} 47... Ra8 {[%clk 0:00:17.1]} 48. Kd4 {[%clk 0:01:14.6]} 48...
Ra7 {[%clk 0:00:15.3]} 49. Bd7 {[%clk 0:00:51.8]} 49... Ra8 {[%clk 0:00:15.2]}
50. a5 {[%clk 0:00:52.1]} 50... bxa5 {[%clk 0:00:14.4]} 51. Rxa5 {[%clk
0:00:52]} 51... Rxa5 {[%clk 0:00:11]} 52. bxa5 {[%clk 0:00:52.9]} 52... Ba3
{[%clk 0:00:10.5]} 53. Bc8 {[%clk 0:00:53.5]} 53... Bc1 {[%clk 0:00:09.7]} 54.
Bxb7 {[%clk 0:00:54]} 54... Bxg5 {[%clk 0:00:10.6]} 55. a6 {[%clk 0:00:53.3]}
55... Bh4 {[%clk 0:00:11.5]} 56. Ke3 {[%clk 0:00:53.4]} 56... Bg5+ {[%clk
0:00:06.5]} 57. Kf3 {[%clk 0:00:53.2]} 57... Bd2 {[%clk 0:00:06.5]} 58. a7
{[%clk 0:00:52.9]} 1-0

[Event "*** Titled Tuesday Blitz"]
[Site "Chess.com"]
[Date "2020.05.05"]
[Round "3"]
[White "alexsergeyev"]
[Black "NewBornNow"]
[Result "0-1"]
[WhiteElo "2381"]
[BlackElo "2596"]
[TimeControl "180+1"]
[EndTime "10:29:53 PDT"]
[Termination "NewBornNow won on time"]

1. e4 {[%clk 0:03:00.9]} 1... c5 {[%clk 0:02:59.1]} 2. Nc3 {[%clk 0:02:59.2]}
2... d6 {[%clk 0:02:58.9]} 3. Nf3 {[%clk 0:02:57.2]} 3... Nf6 {[%clk 0:02:57.1]}
4. g3 {[%clk 0:02:53.9]} 4... g6 {[%clk 0:02:56.4]} 5. Bg2 {[%clk 0:02:53.8]}
5... Bg7 {[%clk 0:02:56.2]} 6. O-O {[%clk 0:02:53.5]} 6... O-O {[%clk
0:02:56.1]} 7. d3 {[%clk 0:02:50.7]} 7... Nc6 {[%clk 0:02:55.1]} 8. Qe2 {[%clk
0:02:44.9]} 8... Rb8 {[%clk 0:02:51.3]} 9. e5 {[%clk 0:02:36.8]} 9... dxe5
{[%clk 0:02:48.6]} 10. Nxe5 {[%clk 0:02:31.9]} 10... Nd4 {[%clk 0:02:48.1]} 11.
Qd1 {[%clk 0:02:28.8]} 11... b5 {[%clk 0:02:47.7]} 12. Re1 {[%clk 0:02:19.2]}
12... Bb7 {[%clk 0:02:45.7]} 13. Bxb7 {[%clk 0:01:51.1]} 13... Rxb7 {[%clk
0:02:44.8]} 14. Ne2 {[%clk 0:01:49.4]} 14... Nd5 {[%clk 0:02:29.4]} 15. Nxd4
{[%clk 0:01:47.2]} 15... cxd4 {[%clk 0:02:24.3]} 16. a4 {[%clk 0:01:40.1]} 16...
a6 {[%clk 0:02:20]} 17. axb5 {[%clk 0:01:38.5]} 17... axb5 {[%clk 0:02:19]} 18.
Bd2 {[%clk 0:01:34.1]} 18... Qd6 {[%clk 0:02:11.2]} 19. f4 {[%clk 0:01:10.7]}
19... Rc8 {[%clk 0:02:07.9]} 20. c4 {[%clk 0:01:00]} 20... dxc3 {[%clk
0:02:06.3]} 21. bxc3 {[%clk 0:00:58.6]} 21... Nxc3 {[%clk 0:01:59.4]} 22. Bxc3
{[%clk 0:00:57.8]} 22... Qc5+ {[%clk 0:01:57.4]} 23. d4 {[%clk 0:00:47.5]} 23...
Qxc3 {[%clk 0:01:56.7]} 24. Rc1 {[%clk 0:00:43.6]} 24... Qxc1 {[%clk 0:01:54.9]}
25. Qxc1 {[%clk 0:00:43.6]} 25... Rxc1 {[%clk 0:01:54.3]} 26. Rxc1 {[%clk
0:00:43.5]} 26... Bxe5 {[%clk 0:01:53.4]} 27. dxe5 {[%clk 0:00:41.6]} 27... Kg7
{[%clk 0:01:47.7]} 28. Kf2 {[%clk 0:00:41.4]} 28... b4 {[%clk 0:01:46.7]} 29.
Ke3 {[%clk 0:00:41.7]} 29... b3 {[%clk 0:01:46.3]} 30. Rb1 {[%clk 0:00:40]}
30... f6 {[%clk 0:01:45.7]} 31. exf6+ {[%clk 0:00:36.5]} 31... Kxf6 {[%clk
0:01:45.5]} 32. Kd3 {[%clk 0:00:35.2]} 32... Kf5 {[%clk 0:01:42.1]} 33. Rb2
{[%clk 0:00:31.7]} 33... e5 {[%clk 0:01:34.5]} 34. fxe5 {[%clk 0:00:28.8]} 34...
Kxe5 {[%clk 0:01:34.4]} 35. Kc3 {[%clk 0:00:28.6]} 35... Ke4 {[%clk 0:01:33.4]}
36. Re2+ {[%clk 0:00:20.6]} 36... Kf3 {[%clk 0:01:33]} 37. Rb2 {[%clk
0:00:20.5]} 37... h5 {[%clk 0:01:28.3]} 38. Kd3 {[%clk 0:00:17.5]} 38... g5
{[%clk 0:01:26.3]} 39. Kc3 {[%clk 0:00:17.2]} 39... g4 {[%clk 0:01:19.6]} 40.
Kd3 {[%clk 0:00:17]} 40... Rb8 {[%clk 0:01:16]} 41. Kc3 {[%clk 0:00:16.4]} 41...
Rc8+ {[%clk 0:01:14.8]} 42. Kd3 {[%clk 0:00:16]} 42... Rc2 {[%clk 0:01:13.4]}
43. Rxb3 {[%clk 0:00:15.4]} 43... Rxh2 {[%clk 0:01:13.1]} 44. Kd4+ {[%clk
0:00:15.7]} 44... Kg2 {[%clk 0:01:12.2]} 45. Ke4 {[%clk 0:00:15.4]} 45... Kh3
{[%clk 0:01:10.6]} 46. Kf4 {[%clk 0:00:14.7]} 46... Rf2+ {[%clk 0:01:09.8]} 47.
Kg5 {[%clk 0:00:15]} 47... Rf3 {[%clk 0:01:09.7]} 48. Rb1 {[%clk 0:00:13.1]}
48... Kxg3 {[%clk 0:01:06.4]} 49. Kxh5 {[%clk 0:00:13.5]} 49... Rf5+ {[%clk
0:01:06]} 50. Kg6 {[%clk 0:00:13.2]} 50... Ra5 {[%clk 0:01:05.4]} 51. Rb3+
{[%clk 0:00:13.1]} 51... Kh2 {[%clk 0:01:05.1]} 52. Rb2+ {[%clk 0:00:11.7]}
52... Kh3 {[%clk 0:01:04.9]} 53. Rb8 {[%clk 0:00:05.5]} 53... g3 {[%clk
0:01:04.4]} 0-1

[Event "*** Titled Tuesday Blitz"]
[Site "Chess.com"]
[Date "2020.05.05"]
[Round "3"]
[White "Anastasia_Nesytova"]
[Black "kungmongmanh"]
[Result "1-0"]
[WhiteElo "2393"]
[BlackElo "2573"]
[TimeControl "180+1"]
[EndTime "10:29:53 PDT"]
[Termination "Anastasia_Nesytova won on time"]

1. d4 {[%clk 0:03:00.9]} 1... Nf6 {[%clk 0:02:59.7]} 2. c4 {[%clk 0:03:00.8]}
2... e6 {[%clk 0:02:59.4]} 3. g3 {[%clk 0:03:00.4]} 3... Bb4+ {[%clk 0:02:59.3]}
4. Bd2 {[%clk 0:03:00.3]} 4... Qe7 {[%clk 0:02:58.2]} 5. Bg2 {[%clk 0:03:00]}
5... O-O {[%clk 0:02:57.7]} 6. e4 {[%clk 0:03:00]} 6... Bxd2+ {[%clk 0:02:56.9]}
7. Qxd2 {[%clk 0:02:57.4]} 7... d5 {[%clk 0:02:56.4]} 8. Nc3 {[%clk 0:02:54.6]}
8... c5 {[%clk 0:02:43.1]} 9. e5 {[%clk 0:02:36.6]} 9... Ne4 {[%clk 0:02:21.3]}
10. Nxe4 {[%clk 0:02:34.8]} 10... dxe4 {[%clk 0:02:21]} 11. Bxe4 {[%clk
0:02:25.5]} 11... cxd4 {[%clk 0:02:20.8]} 12. Ne2 {[%clk 0:02:21.6]} 12... Rd8
{[%clk 0:02:08.6]} 13. Nxd4 {[%clk 0:01:46.1]} 13... Nc6 {[%clk 0:01:57.5]} 14.
Nxc6 {[%clk 0:01:38.3]} 14... bxc6 {[%clk 0:01:56.2]} 15. Qc3 {[%clk 0:01:33.8]}
15... Rb8 {[%clk 0:01:30.1]} 16. O-O {[%clk 0:01:25.7]} 16... c5 {[%clk
0:01:16.1]} 17. Rfd1 {[%clk 0:01:20.5]} 17... Bb7 {[%clk 0:01:14.4]} 18. Bf3
{[%clk 0:00:29.9]} 18... Bxf3 {[%clk 0:00:59.3]} 19. Qxf3 {[%clk 0:00:29.7]}
19... Rxb2 {[%clk 0:00:33.1]} 20. Rxd8+ {[%clk 0:00:29.6]} 20... Qxd8 {[%clk
0:00:34]} 21. Rd1 {[%clk 0:00:30.2]} 21... Qe8 {[%clk 0:00:24.7]} 22. Qc6 {[%clk
0:00:26.2]} 22... Qf8 {[%clk 0:00:18]} 23. Qc7 {[%clk 0:00:24.3]} 23... Rb8
{[%clk 0:00:14.8]} 24. Qxa7 {[%clk 0:00:22.9]} 24... Ra8 {[%clk 0:00:12.7]} 25.
Qc7 {[%clk 0:00:20.7]} 25... g6 {[%clk 0:00:10.6]} 26. a4 {[%clk 0:00:17.7]}
26... Kg7 {[%clk 0:00:09.6]} 27. a5 {[%clk 0:00:17.5]} 27... Rc8 {[%clk
0:00:08.9]} 28. Qd6 {[%clk 0:00:16.8]} 28... Qe8 {[%clk 0:00:08.1]} 29. a6
{[%clk 0:00:17.2]} 29... Qa4 {[%clk 0:00:07.9]} 30. Rb1 {[%clk 0:00:09.5]} 30...
Rc6 {[%clk 0:00:05.8]} 31. Qe7 {[%clk 0:00:08.1]} 31... Rxa6 {[%clk 0:00:04]}
32. Rb8 {[%clk 0:00:08.1]} 32... Qd1+ {[%clk 0:00:04]} 33. Kg2 {[%clk
0:00:08.1]} 33... Kh6 {[%clk 0:00:03.6]} 34. Qh4+ {[%clk 0:00:07.4]} 34... Kg7
{[%clk 0:00:04]} 35. Qf6+ {[%clk 0:00:08]} 35... Kh6 {[%clk 0:00:04.5]} 36. Qh4+
{[%clk 0:00:07.5]} 36... Qh5 {[%clk 0:00:04.2]} 37. Qe7 {[%clk 0:00:07.3]} 37...
Qxe5 {[%clk 0:00:03.3]} 38. Qf8+ {[%clk 0:00:05.9]} 38... Qg7 {[%clk 0:00:01.9]}
39. Qxc5 {[%clk 0:00:05.1]} 1-0

[Event "*** Titled Tuesday Blitz"]
[Site "Chess.com"]
[Date "2020.05.05"]
[Round "3"]
[White "Phenix2k"]
[Black "EddieMarsalla"]
[Result "1-0"]
[WhiteElo "2300"]
[BlackElo "2502"]
[TimeControl "180+1"]
[EndTime "10:29:53 PDT"]
[Termination "Phenix2k won by checkmate"]

1. d4 {[%clk 0:03:00.9]} 1... d5 {[%clk 0:02:59.9]} 2. c4 {[%clk 0:03:00.3]}
2... Bf5 {[%clk 0:03:00.4]} 3. Nc3 {[%clk 0:02:56.2]} 3... e6 {[%clk 0:03:00.4]}
4. Nf3 {[%clk 0:02:54.9]} 4... Nc6 {[%clk 0:03:00.6]} 5. cxd5 {[%clk 0:02:53.5]}
5... exd5 {[%clk 0:03:00.6]} 6. a3 {[%clk 0:02:53.8]} 6... Nf6 {[%clk
0:02:59.9]} 7. Bg5 {[%clk 0:02:50.1]} 7... Be7 {[%clk 0:03:00]} 8. e3 {[%clk
0:02:49.8]} 8... Ne4 {[%clk 0:03:00]} 9. Bxe7 {[%clk 0:02:48.8]} 9... Nxe7
{[%clk 0:03:00.9]} 10. Rc1 {[%clk 0:02:48]} 10... c6 {[%clk 0:03:00.4]} 11. Bd3
{[%clk 0:02:48.1]} 11... Bg6 {[%clk 0:03:00.3]} 12. O-O {[%clk 0:02:41]} 12...
f5 {[%clk 0:03:00.1]} 13. g3 {[%clk 0:02:36.7]} 13... Bh5 {[%clk 0:02:59]} 14.
Be2 {[%clk 0:02:35.9]} 14... O-O {[%clk 0:02:58.8]} 15. Ne5 {[%clk 0:02:34.8]}
15... Bxe2 {[%clk 0:02:58.7]} 16. Qxe2 {[%clk 0:02:35]} 16... Ng6 {[%clk
0:02:59.6]} 17. Nxg6 {[%clk 0:02:27.5]} 17... hxg6 {[%clk 0:03:00.5]} 18. f3
{[%clk 0:02:23.6]} 18... Nd6 {[%clk 0:02:59.4]} 19. Qd3 {[%clk 0:02:19]} 19...
Qe7 {[%clk 0:02:52.6]} 20. Rfe1 {[%clk 0:02:14.8]} 20... Rae8 {[%clk 0:02:52]}
21. b3 {[%clk 0:02:11.4]} 21... g5 {[%clk 0:02:52]} 22. f4 {[%clk 0:02:02.8]}
22... g4 {[%clk 0:02:47.3]} 23. Na4 {[%clk 0:01:56.9]} 23... Ne4 {[%clk
0:02:39.9]} 24. Nc5 {[%clk 0:01:53.9]} 24... Nxc5 {[%clk 0:02:37.5]} 25. Rxc5
{[%clk 0:01:50]} 25... Rf6 {[%clk 0:02:37.4]} 26. b4 {[%clk 0:01:47.9]} 26... a6
{[%clk 0:02:36.6]} 27. Kf2 {[%clk 0:01:45.8]} 27... Rh6 {[%clk 0:02:34]} 28. Kg1
{[%clk 0:01:42.9]} 28... Re6 {[%clk 0:02:03]} 29. Kf2 {[%clk 0:01:39]} 29... Qf6
{[%clk 0:01:57.1]} 30. Re2 {[%clk 0:01:33.4]} 30... g5 {[%clk 0:01:52.7]} 31.
fxg5 {[%clk 0:01:29]} 31... Qxg5 {[%clk 0:01:53.6]} 32. a4 {[%clk 0:01:26.2]}
32... f4 {[%clk 0:01:38.9]} 33. gxf4 {[%clk 0:01:25.4]} 33... Qh4+ {[%clk
0:01:38.8]} 34. Kg1 {[%clk 0:01:18.8]} 34... Rh6 {[%clk 0:01:23]} 35. Rcc2
{[%clk 0:00:50.8]} 35... Kh8 {[%clk 0:01:12.6]} 36. Qd1 {[%clk 0:00:44.3]} 36...
g3 {[%clk 0:00:59.3]} 37. Rg2 {[%clk 0:00:40.2]} 37... Rxe3 {[%clk 0:00:55.2]}
38. Rce2 {[%clk 0:00:30.8]} 38... gxh2+ {[%clk 0:00:36.2]} 39. Kh1 {[%clk
0:00:30.6]} 39... Qxf4 {[%clk 0:00:30.2]} 40. Ref2 {[%clk 0:00:24.7]} 40... Qd6
{[%clk 0:00:20.5]} 41. Qf1 {[%clk 0:00:23.7]} 41... Re8 {[%clk 0:00:06.5]} 42.
Rf7 {[%clk 0:00:19.2]} 42... Rh7 {[%clk 0:00:03]} 43. Rxh7+ {[%clk 0:00:18]}
43... Kxh7 {[%clk 0:00:03.9]} 44. Qf7+ {[%clk 0:00:18]} 44... Kh6 {[%clk
0:00:03.2]} 45. Qg7+ {[%clk 0:00:18]} 45... Kh5 {[%clk 0:00:03.2]} 46. Qg5#
{[%clk 0:00:18.9]} 1-0

[Event "*** Titled Tuesday Blitz"]
[Site "Chess.com"]
[Date "2020.05.05"]
[Round "3"]
[White "Joshukid"]
[Black "ChessFunMaker"]
[Result "1-0"]
[WhiteElo "2570"]
[BlackElo "2359"]
[TimeControl "180+1"]
[EndTime "10:29:54 PDT"]
[Termination "Joshukid won by checkmate"]

1. d4 {[%clk 0:03:00.6]} 1... Nf6 {[%clk 0:02:57.8]} 2. Nc3 {[%clk 0:03:00.2]}
2... d5 {[%clk 0:02:57.5]} 3. Bf4 {[%clk 0:02:56.9]} 3... a6 {[%clk 0:02:40.8]}
4. e3 {[%clk 0:02:48.3]} 4... c5 {[%clk 0:02:32.7]} 5. dxc5 {[%clk 0:02:44.8]}
5... Qa5 {[%clk 0:02:23.6]} 6. Bxb8 {[%clk 0:02:29.1]} 6... Rxb8 {[%clk
0:02:22.5]} 7. Qd4 {[%clk 0:02:30]} 7... b6 {[%clk 0:01:49.3]} 8. cxb6 {[%clk
0:01:46.1]} 8... Rxb6 {[%clk 0:01:48]} 9. Qa4+ {[%clk 0:01:40.7]} 9... Qxa4
{[%clk 0:01:44.5]} 10. Nxa4 {[%clk 0:01:41.6]} 10... Rb4 {[%clk 0:01:18.4]} 11.
b3 {[%clk 0:01:41]} 11... e5 {[%clk 0:01:15.9]} 12. a3 {[%clk 0:01:37.2]} 12...
Rb8 {[%clk 0:01:13.1]} 13. Nf3 {[%clk 0:01:37.6]} 13... Bd6 {[%clk 0:01:11.3]}
14. Be2 {[%clk 0:01:26.5]} 14... a5 {[%clk 0:01:01.6]} 15. O-O {[%clk
0:01:25.8]} 15... Bf5 {[%clk 0:01:00.4]} 16. Rfc1 {[%clk 0:01:04.4]} 16... O-O
{[%clk 0:01:00.4]} 17. Ne1 {[%clk 0:01:00.6]} 17... e4 {[%clk 0:00:36.4]} 18. h3
{[%clk 0:00:39.4]} 18... Be5 {[%clk 0:00:36.7]} 19. Ra2 {[%clk 0:00:37.2]} 19...
d4 {[%clk 0:00:33.8]} 20. exd4 {[%clk 0:00:34.1]} 20... Bxd4 {[%clk 0:00:34.7]}
21. c3 {[%clk 0:00:35]} 21... Ba7 {[%clk 0:00:34]} 22. b4 {[%clk 0:00:35.3]}
22... Nd5 {[%clk 0:00:20.3]} 23. c4 {[%clk 0:00:32.2]} 23... Nf4 {[%clk
0:00:20.3]} 24. b5 {[%clk 0:00:25.8]} 24... Rfd8 {[%clk 0:00:14]} 25. Bf1 {[%clk
0:00:14.8]} 25... Nd3 {[%clk 0:00:14.1]} 26. Nxd3 {[%clk 0:00:14.6]} 26... exd3
{[%clk 0:00:15]} 27. Rd2 {[%clk 0:00:13.2]} 27... Bd4 {[%clk 0:00:12.5]} 28. Nb2
{[%clk 0:00:12.9]} 28... Bxb2 {[%clk 0:00:09.8]} 29. Rxb2 {[%clk 0:00:13.8]}
29... Rbc8 {[%clk 0:00:08.6]} 30. Rd2 {[%clk 0:00:13.9]} 30... Rd4 {[%clk
0:00:07.4]} 31. c5 {[%clk 0:00:14.6]} 31... Rd5 {[%clk 0:00:07.3]} 32. c6 {[%clk
0:00:14.8]} 32... Rxb5 {[%clk 0:00:07.7]} 33. Bxd3 {[%clk 0:00:15.6]} 33... g6
{[%clk 0:00:03.8]} 34. Bxf5 {[%clk 0:00:16.4]} 34... gxf5 {[%clk 0:00:03.8]} 35.
c7 {[%clk 0:00:17]} 35... Kg7 {[%clk 0:00:04.2]} 36. Rd8 {[%clk 0:00:17.3]}
36... Rbb8 {[%clk 0:00:03.4]} 37. cxb8=Q {[%clk 0:00:16.1]} 37... Rxc1+ {[%clk
0:00:04]} 38. Kh2 {[%clk 0:00:16.6]} 38... Rh1+ {[%clk 0:00:04.5]} 39. Kxh1
{[%clk 0:00:17]} 39... h5 {[%clk 0:00:04.3]} 40. Qe5+ {[%clk 0:00:16.6]} 40...
Kh6 {[%clk 0:00:04.5]} 41. Qf6+ {[%clk 0:00:15.3]} 41... Kh7 {[%clk 0:00:04.8]}
42. Rh8# {[%clk 0:00:16.2]} 1-0